bitfinex/quotes_ETHUSD_20240610
["timestamp","ask_amount","ask_price","bid_price","bid_amount"]
[1717999299765,0.55,3682.1,3682.0,0.68]
[1717999308462,0.796,3682.2,3682.0,0.68]
[1717999308868,0.04970332,3682.1,3682.0,0.68]
[1717999309098,0.04970332,3682.1,3682.0,35.68]
[1717999309421,0.796,3682.2,3682.0,35.68]
[1717999310062,1.35778,3682.5,3682.0,0.68]
[1717999310302,1.724008,3682.5,3682.0,0.68]
[1717999310516,0.04981945,3682.4,3682.0,0.68]
[1717999311001,0.04981945,3682.4,3682.1,2.3339]
[1717999311202,0.796,3682.8,3682.1,2.3339]
[1717999311502,0.04990556,3682.7,3682.2,35.0]
[1717999311801,0.796,3682.8,3682.2,35.0]
[1717999312001,1.35755,3683.1,3682.2,2.28258903]
[1717999312187,1.35744,3683.4,3682.4,2.3936]
[1717999312401,0.796,3683.1,3682.4,2.3936]
[1717999313104,0.05002502,3683.0,3682.4,2.3936]
[1717999313483,0.796,3683.1,3682.4,2.3936]
[1717999313665,1.35744,3683.4,3682.3,1.35783]
[1717999313666,0.796,3682.9,3682.3,1.35783]
[1717999314005,0.796,3682.7,3682.3,1.35783]
[1717999314367,0.04991022,3682.6,3682.3,1.35783]
[1717999314895,0.796,3682.7,3682.3,1.35783]
[1717999315797,3.70605,3683.2,3682.3,1.35783]
[1717999316005,0.796,3682.8,3682.3,1.35783]
[1717999317903,0.04993892,3682.7,3682.3,1.35783]
[1717999318409,0.796,3682.8,3682.3,1.35783]
[1717999319616,0.796,3683.1,3682.5,1.35775]
[1717999320505,0.796,3683.1,3682.5,1.817035]
[1717999321482,0.05002502,3683.0,3682.5,1.817035]
[1717999324586,0.796,3682.9,3682.5,1.817035]
[1717999324982,0.04996762,3682.8,3682.5,1.817035]
[1717999325298,0.796,3682.9,3682.5,1.817035]
[1717999325494,0.04993892,3682.7,3682.5,1.817035]
[1717999325750,0.796,3682.7,3682.5,1.35775]
[1717999326224,0.04991022,3682.6,3682.5,1.35775]
[1717999326598,0.796,3682.7,3682.5,1.35775]
[1717999328491,0.05013698,3682.6,3682.5,1.35775]
[1717999328983,0.796,3682.7,3682.5,1.35775]
[1717999329421,0.05013698,3682.6,3682.5,1.35775]
[1717999329719,0.796,3682.7,3682.5,1.35775]
[1717999329922,0.05013698,3682.6,3682.5,1.35775]
[1717999330389,0.796,3682.7,3682.2,1.35787]
[1717999333604,0.05008029,3682.6,3682.2,1.35787]
[1717999334794,0.796,3682.7,3682.2,1.35787]
[1717999335087,0.04999026,3682.6,3682.2,1.35787]
[1717999339042,2.2667,3682.5,3682.2,1.35787]
[1717999339407,0.04993285,3682.4,3682.2,1.35787]
[1717999340939,0.04993285,3682.4,3682.0,0.68]
[1717999342455,0.796,3682.1,3682.0,0.68]
[1717999343043,0.84580873,3682.1,3682.0,0.68]
[1717999345451,0.04980873,3682.1,3682.0,0.68]
[1717999345950,0.04920886,3682.1,3682.0,0.68]
[1717999346111,1.346,3682.3,3682.0,0.68]
[1717999346442,0.04920886,3682.1,3682.0,0.68]
[1717999346846,1.864553,3682.3,3682.0,0.68]
[1717999347021,0.04920886,3682.1,3682.0,0.68]
[1717999347220,1.864553,3682.3,3682.0,0.68]
[1717999347738,0.04923757,3682.2,3682.0,0.68]
[1717999348028,1.864553,3682.3,3682.0,0.68]
[1717999348246,0.04920886,3682.1,3682.0,0.68]
[1717999348402,1.864553,3682.3,3682.0,0.68]
[1717999348607,0.04920886,3682.1,3682.0,0.68]
[1717999348844,1.864553,3682.3,3682.0,0.68]
[1717999349058,0.04920886,3682.1,3682.0,0.68]
[1717999349229,1.864553,3682.3,3682.0,0.68]
[1717999349607,0.04923757,3682.2,3682.0,0.68]
[1717999350047,1.864553,3682.3,3682.0,0.68]
[1717999350250,0.04920886,3682.1,3682.0,0.68]
[1717999350451,1.346,3682.3,3682.0,0.68]
[1717999350947,0.04923757,3682.2,3682.0,0.68]
[1717999351255,1.346,3682.3,3682.0,0.68]
[1717999351450,0.04920886,3682.1,3682.0,0.68]
[1717999351623,1.346,3682.3,3682.0,0.68]
[1717999351940,1.35783,3682.4,3682.0,0.68]
[1717999352165,0.796,3682.5,3682.0,0.68]
[1717999352306,0.04926628,3682.3,3682.0,0.68]
[1717999352526,0.796,3682.5,3682.0,0.68]
[1717999352731,0.0491942,3682.2,3682.0,0.68]
[1717999352932,0.796,3682.5,3682.0,0.68]
[1717999353267,0.04916549,3682.1,3682.0,0.68]
[1717999353438,0.796,3682.5,3682.0,0.68]
[1717999353769,0.04925162,3682.4,3682.1,2.4149]
[1717999357464,0.48490567,3682.5,3682.1,2.4149]
[1717999357665,0.04758119,3682.3,3682.1,2.4149]
[1717999358036,0.48490567,3682.5,3682.1,2.4149]
[1717999358673,0.0476099,3682.4,3682.1,2.4149]
[1717999359777,1.3577,3682.7,3682.1,2.4149]
[1717999359935,0.04758119,3682.3,3682.1,2.4149]
[1717999360138,0.796,3682.5,3682.1,2.72439]
[1717999360376,0.04755248,3682.2,3682.1,2.72439]
[1717999360883,0.796,3682.5,3682.1,2.72439]
[1717999361290,0.0476099,3682.4,3682.1,2.72439]
[1717999362363,0.0476099,3682.4,3682.1,2.4149]
[1717999363479,0.0476099,3682.4,3682.0,0.68]
[1717999363976,0.796,3682.5,3682.0,0.68]
[1717999364910,3.2043,3682.1,3682.0,0.68]
[1717999365075,4.12973,3682.1,3682.0,0.68]
[1717999365385,3.8018371,3682.1,3682.0,0.68]
[1717999365775,3.0058371,3682.1,3682.0,0.68]
[1717999365982,3.8018371,3682.1,3682.0,0.68]
[1717999366156,1.4054571,3682.1,3682.0,0.68]
[1717999368959,1.35792,3682.1,3682.0,0.68]
[1717999373292,1.40534034,3682.1,3682.0,0.68]
[1717999373659,1.35792,3682.1,3682.0,0.68]
[1717999374400,2.15392,3682.1,3682.0,0.68]
[1717999376602,2.20134034,3682.1,3682.0,0.68]
[1717999377208,2.15392,3682.1,3682.0,0.68]
[1717999377494,0.796,3682.1,3682.0,0.68]
[1717999377862,0.84347707,3682.1,3682.0,0.68]
[1717999378058,0.796,3682.1,3682.0,0.68]
[1717999383988,1.608808,3682.1,3682.0,0.68]
[1717999388109,1.561391,3682.1,3682.0,0.68]
[1717999389538,1.346,3682.1,3682.0,0.68]
[1717999391532,0.55,3682.1,3682.0,0.68]
[1717999391736,0.796,3682.1,3682.0,0.68]
[1717999392122,0.843417,3682.1,3682.0,0.68]
[1717999392634,0.796,3682.1,3682.0,0.68]
[1717999393037,0.047417,3682.1,3682.0,0.68]
[1717999393472,0.796,3682.2,3682.0,0.68]
[1717999393599,1.35767,3682.8,3682.0,0.98856]
[1717999393811,0.796,3682.6,3682.1,2.2915]
[1717999394110,1.35767,3682.8,3682.1,2.2915]
[1717999394297,2.15367,3682.8,3682.2,0.328006]
[1717999394496,0.796,3682.6,3682.2,0.328006]
[1717999394938,1.35767,3682.8,3682.2,0.328006]
[1717999395097,0.796,3682.9,3682.2,0.328006]
[1717999395698,0.796,3682.7,3682.2,0.328006]
[1717999395940,3.78344,3683.2,3682.3,0.4965996]
[1717999395941,1.35762,3683.0,3682.3,0.4965996]
[1717999396112,0.796,3682.7,3682.3,0.4965996]
[1717999399121,0.796,3682.5,3682.0,0.68]
[1717999399441,0.796,3682.1,3682.0,0.68]
[1717999400533,0.55,3682.4,3682.0,0.68]
[1717999400534,0.796,3682.3,3682.0,0.68]
[1717999401604,0.55,3682.4,3682.0,0.68]
[1717999401938,1.3577,3682.7,3682.0,1.112099]
[1717999402707,1.35759,3683.0,3682.0,1.112099]
[1717999403038,0.796,3682.8,3682.1,2.4511]
[1717999403506,0.04770932,3682.7,3682.1,2.4511]
[1717999403707,0.796,3682.8,3682.2,0.4359199]
[1717999403919,0.04773267,3682.7,3682.2,0.4359199]
[1717999404521,0.796,3682.8,3682.2,0.4359199]
[1717999404851,0.796,3682.6,3682.0,0.68]
[1717999405058,0.796,3682.3,3682.0,0.68]
[1717999405353,0.0476466,3682.2,3682.0,0.68]
[1717999405552,0.796,3682.3,3682.0,0.68]
[1717999406444,1.90779,3682.5,3682.0,0.68]
[1717999406946,3.64024,3682.9,3682.1,2.4926]
[1717999407140,0.04778003,3682.4,3682.1,2.4926]
[1717999407341,1.35764,3682.9,3682.1,3.2886]
[1717999407539,0.04734872,3682.3,3682.2,0.4172399]
[1717999407742,0.796,3682.8,3682.2,0.4172399]
[1717999407948,0.04739209,3682.3,3682.2,0.4172399]
[1717999408151,0.796,3682.8,3682.2,0.4172399]
[1717999408326,0.0474377,3682.3,3682.1,2.4926]
[1717999408514,0.796,3682.8,3682.1,2.4926]
[1717999408891,0.04759814,3682.7,3682.1,2.4926]
[1717999409028,0.796,3682.6,3682.1,2.4926]
[1717999409344,0.84359983,3682.6,3682.1,2.4926]
[1717999409711,0.796,3682.6,3682.1,2.4926]
[1717999410442,1.35778,3682.5,3682.0,0.68]
[1717999410748,0.84355762,3682.4,3682.0,0.68]
[1717999410952,0.04755762,3682.4,3682.0,0.68]
[1717999411246,1.35765,3682.9,3682.0,0.68]
[1717999411447,1.346,3682.8,3682.0,0.68]
[1717999411746,1.346,3682.8,3682.0,2.009339]
[1717999412104,1.346,3682.8,3682.0,1.213339]
[1717999412330,1.35771,3682.7,3682.0,0.68]
[1717999412822,0.796,3682.6,3682.0,0.68]
[1717999414146,0.55,3682.8,3682.0,0.68]
[1717999414147,0.796,3682.4,3682.0,0.68]
[1717999414448,1.25553,3682.4,3682.0,0.68]
[1717999414614,0.796,3682.4,3682.0,0.68]
[1717999415412,3.7993,3682.5,3682.0,0.68]
[1717999415753,0.55,3682.4,3682.0,0.68]
[1717999419402,0.796,3682.3,3682.0,0.68]
[1717999419571,0.84357452,3682.3,3682.0,0.68]
[1717999420181,0.796,3682.3,3682.0,0.68]
[1717999420777,1.35787,3682.3,3682.0,0.68]
[1717999420979,0.59754581,3682.2,3682.0,0.68]
[1717999421182,1.39354581,3682.2,3682.0,0.68]
[1717999421494,1.346,3682.2,3682.0,0.68]
[1717999422470,0.55,3682.2,3682.0,0.68]
[1717999424619,0.0474804,3682.1,3682.0,0.68]
[1717999425396,0.8434804,3682.1,3682.0,0.68]
[1717999425597,1.3934804,3682.1,3682.0,0.68]
[1717999425796,0.5974804,3682.1,3682.0,0.68]
[1717999430525,1.3934804,3682.1,3682.0,0.68]
[1717999440237,0.5974804,3682.1,3682.0,0.68]
[1717999440443,1.3934804,3682.1,3682.0,0.68]
[1717999446312,1.66861544,3682.1,3682.0,0.68]
[1717999449359,0.87261544,3682.1,3682.0,0.68]
[1717999449676,1.66861544,3682.1,3682.0,0.68]
[1717999450078,0.87261544,3682.1,3682.0,0.68]
[1717999450291,1.66861544,3682.1,3682.0,0.68]
[1717999452808,0.87261544,3682.1,3682.0,0.68]
[1717999453109,1.3934804,3682.1,3682.0,0.68]
[1717999457718,0.5974804,3682.1,3682.0,0.68]
[1717999457918,1.3934804,3682.1,3682.0,0.68]
[1717999459311,0.5974804,3682.1,3682.0,0.68]
[1717999460622,1.3934804,3682.1,3682.0,0.68]
[1717999469823,0.5974804,3682.1,3682.0,0.68]
[1717999474715,0.0474804,3682.1,3682.0,0.68]
[1717999474919,0.0474804,3682.1,3682.0,3.0729]
[1717999475230,2.15374,3682.6,3682.0,3.515993]
[1717999475616,0.04780755,3682.5,3682.0,3.515993]
[1717999475811,0.04777885,3682.4,3682.0,3.515993]
[1717999476353,2.15374,3682.6,3682.0,3.515993]
[1717999476705,0.796,3682.4,3682.0,3.0729]
[1717999477237,0.796,3682.2,3682.0,0.68]
[1717999477744,0.04769273,3682.1,3682.0,0.68]
[1717999480728,0.796,3682.3,3682.0,0.68]
[1717999480937,0.04769273,3682.1,3682.0,0.68]
[1717999481240,1.35774,3682.6,3682.0,0.68]
[1717999481410,0.04769273,3682.1,3682.0,0.68]
[1717999481620,0.796,3682.3,3682.0,1.109223]
[1717999481825,0.796,3682.3,3682.0,0.68]
[1717999482007,0.04772144,3682.2,3682.0,0.68]
[1717999482523,0.04769273,3682.1,3682.0,0.68]
[1717999482928,0.55,3682.5,3682.0,0.68]
[1717999483236,0.04769273,3682.1,3682.0,1.109223]
[1717999483407,0.796,3682.4,3682.0,1.109223]
[1717999483608,0.55,3682.5,3682.1,2.3023]
[1717999483930,0.796,3682.4,3682.1,2.3023]
[1717999484113,0.84377885,3682.4,3682.1,2.3023]
[1717999484436,0.796,3682.4,3682.2,0.3411523]
[1717999484636,0.04775015,3682.3,3682.2,0.3411523]
[1717999485324,0.796,3682.7,3682.2,0.3411523]
[1717999485644,0.796,3682.6,3682.2,0.3411523]
[1717999485806,0.796,3682.6,3682.3,0.51105853]
[1717999489646,0.0479343,3682.5,3682.3,0.51105853]
[1717999490004,0.796,3682.6,3682.3,0.51105853]
[1717999490744,0.796,3682.4,3682.1,3.66021]
[1717999490912,0.796,3682.4,3682.1,2.3023]
[1717999491112,0.0478769,3682.3,3682.1,2.3023]
[1717999491721,0.796,3682.4,3682.1,2.3023]
[1717999495040,0.796,3682.4,3682.0,0.68]
[1717999498453,1.3577,3682.7,3682.0,1.114442]
[1717999498651,2.1537,3682.7,3682.1,2.3349]
[1717999498840,0.796,3682.5,3682.1,2.3349]
[1717999499249,0.0477739,3682.4,3682.1,2.3349]
[1717999499416,0.796,3682.5,3682.1,2.3349]
[1717999499616,0.796,3682.5,3682.1,4.98520545]
[1717999500556,0.796,3682.3,3682.0,0.68]
[1717999501057,0.04771649,3682.2,3682.0,0.68]
[1717999501348,0.796,3682.3,3682.0,0.68]
[1717999503369,1.3577,3682.7,3682.0,0.68]
[1717999503543,0.796,3682.4,3682.1,0.441902]
[1717999503742,0.796,3682.4,3682.0,0.68]
[1717999504540,0.04764178,3682.3,3682.0,0.68]
[1717999505144,0.796,3682.4,3682.0,0.68]
[1717999505826,0.04764178,3682.3,3682.0,0.68]
[1717999506029,0.796,3682.4,3682.0,0.68]
[1717999506459,0.04764178,3682.3,3682.0,0.68]
[1717999506768,0.04764178,3682.3,3682.0,1.121902]
[1717999510328,0.796,3682.4,3682.0,1.121902]
[1717999511292,0.796,3682.4,3682.0,0.68]
[1717999513540,0.04761542,3682.3,3682.0,0.68]
[1717999513741,0.796,3682.4,3682.0,0.68]
[1717999519789,0.04761478,3682.3,3682.0,0.68]
[1717999520283,0.796,3682.4,3682.0,0.68]
[1717999523596,0.04759364,3682.3,3682.0,0.68]
[1717999523790,0.796,3682.2,3682.0,0.68]
[1717999524592,0.04753622,3682.1,3682.0,0.68]
[1717999524996,0.796,3682.2,3682.0,0.68]
[1717999530672,0.04743424,3682.1,3682.0,0.68]
[1717999531002,0.796,3682.2,3682.0,0.68]
[1717999536163,0.09995187,3682.1,3682.0,0.68]
[1717999536565,0.796,3682.2,3682.0,0.68]
[1717999537862,0.09995187,3682.1,3682.0,0.68]
[1717999538058,0.796,3682.2,3682.0,0.68]
[1717999556681,1.35787,3682.3,3682.0,0.68]
[1717999556988,0.796,3682.1,3682.0,0.68]
[1717999563186,0.8959552,3682.1,3682.0,0.68]
[1717999563741,3.37203772,3682.1,3682.0,0.68]
[1717999563924,3.92203772,3682.1,3682.0,0.68]
[1717999568043,1.67133772,3682.1,3682.0,0.68]
[1717999573319,4.12403772,3682.1,3682.0,0.68]
[1717999576916,1.67133772,3682.1,3682.0,0.68]
[1717999581767,0.87533772,3682.1,3682.0,0.68]
[1717999581952,1.67133772,3682.1,3682.0,0.68]
[1717999583761,1.67133772,3682.1,3681.2,0.45552297]
[1717999583762,1.35819,3681.4,3681.2,0.45552297]
[1717999583966,0.8955645,3681.3,3681.2,0.45552297]
[1717999584125,1.4455645,3681.3,3681.2,0.45552297]
[1717999584333,0.6495645,3681.3,3681.2,0.45552297]
[1717999584560,1.4455645,3681.3,3681.2,0.45552297]
[1717999587868,0.6495645,3681.3,3681.2,0.45552297]
[1717999588272,1.4455645,3681.3,3681.2,0.45552297]
[1717999588779,0.6495645,3681.3,3681.2,0.45552297]
[1717999588933,1.4455645,3681.3,3681.2,0.45552297]
[1717999589138,0.6495645,3681.3,3681.2,0.45552297]
[1717999589473,1.4455645,3681.3,3681.2,0.45552297]
[1717999590646,0.6495645,3681.3,3681.2,0.45552297]
[1717999590974,1.4455645,3681.3,3681.2,0.45552297]
[1717999591537,0.6495645,3681.3,3681.2,0.45552297]
[1717999591737,0.0995645,3681.3,3681.2,0.45552297]
[1717999597798,0.796,3681.5,3681.2,2.77472297]
[1717999597958,0.09608114,3681.4,3681.2,2.77472297]
[1717999599167,0.796,3681.4,3681.2,2.77472297]
[1717999599498,0.09607728,3681.3,3681.2,2.77472297]
[1717999601550,1.35806,3681.8,3681.2,2.77472297]
[1717999601751,0.796,3681.4,3681.2,2.77472297]
[1717999601953,0.09607391,3681.3,3681.2,2.77472297]
[1717999603002,0.55,3681.7,3681.2,2.77472297]
[1717999603202,0.796,3681.3,3681.2,0.45552297]
[1717999603406,0.89206723,3681.3,3681.2,0.45552297]
[1717999604611,0.09606723,3681.3,3681.2,0.45552297]
[1717999604773,0.796,3681.3,3681.2,0.45552297]
[1717999604975,0.89195344,3681.3,3681.2,0.45552297]
[1717999607608,0.89195344,3681.3,3681.2,0.38780597]
[1717999608572,0.89195344,3681.3,3681.2,0.38580597]
[1717999611419,3.24835344,3681.3,3681.2,0.38580597]
[1717999611582,3.70900278,3681.3,3681.2,0.38580597]
[1717999611794,2.91300278,3681.3,3681.2,0.38580597]
[1717999611997,3.24835344,3681.3,3681.2,0.38580597]
[1717999618645,0.89195344,3681.3,3681.2,0.38580597]
[1717999621521,0.796,3681.3,3681.2,0.38580597]
[1717999622724,1.35814,3681.5,3681.2,0.38580597]
[1717999622927,0.796,3681.3,3681.2,0.38580597]
[1717999624259,0.88969699,3681.3,3681.2,0.38580597]
[1717999625509,0.09369699,3681.3,3681.2,0.38580597]
[1717999625812,3.2027837,3681.3,3681.2,0.38580597]
[1717999626008,3.84521227,3681.3,3681.2,0.38580597]
[1717999626240,3.04921227,3681.3,3681.2,0.38580597]
[1717999626517,3.84521227,3681.3,3681.2,0.38580597]
[1717999626930,1.58361227,3681.3,3681.2,0.38580597]
[1717999635165,0.09242857,3681.3,3681.2,0.38580597]
[1717999635389,0.796,3681.3,3681.2,0.38580597]
[1717999635881,0.88840173,3681.3,3681.2,0.38580597]
[1717999638410,1.43840173,3681.3,3681.2,0.38580597]
[1717999645673,0.64240173,3681.3,3681.2,0.38580597]
[1717999645946,1.43840173,3681.3,3681.2,0.38580597]
[1717999650146,0.88840173,3681.3,3681.2,0.38580597]
[1717999658440,1.3501859,3681.3,3681.2,0.38580597]
[1717999658651,1.9001859,3681.3,3681.2,0.38580597]
[1717999667170,4.2863859,3681.3,3681.2,0.38580597]
[1717999667646,3.4903859,3681.3,3681.2,0.38580597]
[1717999667970,4.2863859,3681.3,3681.2,0.38580597]
[1717999670266,3.4903859,3681.3,3681.2,0.38580597]
[1717999670457,4.2863859,3681.3,3681.2,0.38580597]
[1717999703209,1.9001859,3681.3,3681.2,0.38580597]
[1717999709941,5.5662959,3681.3,3681.2,0.38580597]
[1717999710107,9.9245059,3681.3,3681.2,0.38580597]
[1717999713032,7.6166059,3681.3,3681.2,0.38580597]
[1717999718038,4.5248159,3681.3,3681.2,0.38580597]
[1717999718209,2.78819541,3681.3,3681.2,0.38580597]
[1717999718409,4.14640541,3681.3,3681.2,0.38580597]
[1717999738390,4.14640541,3681.3,3680.6,0.03]
[1717999738391,2.304,3681.2,3680.6,0.03]
[1717999738681,2.71686,3680.7,3680.6,0.03]
[1717999738882,3.51286,3680.7,3680.6,0.03]
[1717999739104,4.14651675,3680.7,3680.6,0.03]
[1717999739636,4.14651675,3680.7,3680.3,0.11639354]
[1717999739637,1.35854,3680.4,3680.3,0.11639354]
[1717999739746,4.06308,3680.4,3680.3,0.11639354]
[1717999739953,4.14646636,3680.4,3680.3,0.11639354]
[1717999740413,3.66258,3680.3,3679.4,0.005]
[1717999740565,0.796,3679.5,3679.4,0.005]
[1717999741096,1.42896879,3679.5,3679.4,0.005]
[1717999741248,2.93074567,3679.5,3678.6,0.016]
[1717999741456,0.796,3678.8,3678.6,0.016]
[1717999741866,1.99162389,3678.7,3678.6,0.016]
[1717999742270,1.35932,3678.3,3677.6,2.42456897]
[1717999742479,1.35939,3678.1,3677.6,2.42456897]
[1717999742799,1.44149375,3678.1,3677.6,2.42456897]
[1717999743099,2.23749375,3678.1,3677.6,2.42456897]
[1717999743298,1.44149375,3678.1,3677.6,2.42456897]
[1717999743608,0.08210375,3678.1,3677.6,2.42456897]
[1717999743760,0.08210375,3678.1,3677.7,2.33]
[1717999743953,1.35905,3679.1,3677.9,3.68946]
[1717999744152,0.796,3678.6,3678.0,2.3765]
[1717999744456,0.07587063,3678.5,3678.2,3.73585]
[1717999744669,0.07587063,3678.5,3678.4,3.1725]
[1717999744970,1.35859,3680.3,3678.9,1.35908]
[1717999745177,0.796,3680.0,3679.1,2.31]
[1717999745380,0.796,3679.8,3679.1,2.31]
[1717999745670,1.35859,3680.3,3679.1,2.31]
[1717999745671,0.796,3680.0,3679.2,0.446508]
[1717999745995,0.07668971,3679.9,3679.2,1.242508]
[1717999746481,0.796,3680.2,3679.2,1.242508]
[1717999746684,0.796,3680.2,3679.3,0.3552508]
[1717999746870,1.35859,3680.3,3679.3,0.3552508]
[1717999747642,1.35872,3680.0,3679.3,0.3552508]
[1717999747851,1.35872,3680.0,3679.1,2.31]
[1717999748344,1.35884,3679.7,3679.1,2.31]
[1717999748527,0.07760558,3679.6,3679.1,2.31]
[1717999750434,1.35867,3680.1,3679.1,3.66899]
[1717999750639,0.0771555,3679.5,3679.2,0.366899]
[1717999750800,1.35867,3680.1,3679.2,0.366899]
[1717999751011,0.07712818,3679.4,3679.2,0.366899]
[1717999751237,1.35867,3680.1,3679.2,0.366899]
[1717999751412,0.07710085,3679.3,3679.2,0.366899]
[1717999751612,1.35867,3680.1,3679.2,0.366899]
[1717999751852,1.35867,3680.1,3679.3,0.4035889]
[1717999752172,0.07748825,3680.0,3679.3,0.4035889]
[1717999753261,0.07748825,3680.0,3679.4,3.78321]
[1717999753539,1.35836,3680.9,3679.6,1.35881]
[1717999753741,1.35836,3680.9,3679.7,0.378311]
[1717999754046,0.07504315,3680.8,3679.7,0.378311]
[1717999754407,1.35836,3680.9,3679.7,0.378311]
[1717999755435,0.07518885,3680.8,3679.7,0.378311]
[1717999756049,1.35836,3680.9,3679.8,1.35876]
[1717999756348,1.35836,3680.9,3679.9,0.1737071]
[1717999756733,1.35846,3680.7,3679.9,0.1737071]
[1717999756924,0.07513424,3680.6,3679.9,0.1737071]
[1717999757647,1.35853,3680.5,3679.5,2.4243]
[1717999757946,1.35864,3680.2,3679.5,2.4243]
[1717999758104,0.07524499,3680.1,3679.5,2.4243]
[1717999758310,0.07524499,3680.1,3679.6,0.41867889]
[1717999759406,0.07524499,3680.1,3679.5,2.4243]
[1717999763891,1.35864,3680.2,3679.5,2.4243]
[1717999767772,1.35849,3680.6,3679.5,2.4243]
[1717999776111,1.35849,3680.6,3679.5,3.78314]
[1717999779233,1.35834,3681.0,3680.0,1.35868]
[1717999779409,1.35834,3681.0,3680.1,0.374108]
[1717999779607,1.3584,3680.8,3680.1,0.374108]
[1717999779991,0.07534674,3680.7,3680.1,0.374108]
[1717999781637,0.07534674,3680.7,3680.2,2.4796]
[1717999781821,0.07534674,3680.7,3680.2,2.9008388]
[1717999788582,0.07534674,3680.7,3680.2,4.2594188]
[1717999788710,1.78368875,3681.1,3680.2,4.2594188]
[1717999788917,0.07547513,3680.6,3680.2,4.2594188]
[1717999789159,1.78368875,3681.1,3680.2,4.2594188]
[1717999789453,0.07558434,3681.0,3680.2,4.2594188]
[1717999789626,0.07558434,3681.0,3680.3,0.42594188]
[1717999798238,1.35836,3680.9,3680.2,3.83818]
[1717999800863,1.35836,3680.9,3680.2,2.4796]
[1717999801048,0.0757399,3680.8,3680.2,2.4796]
[1717999801356,1.35846,3680.7,3680.2,2.4796]
[1717999801558,1.35846,3680.7,3679.8,3.69303]
[1717999801758,0.07567534,3680.6,3679.8,3.69303]
[1717999802221,1.35846,3680.7,3679.8,3.69303]
[1717999803640,0.07575987,3680.6,3679.8,3.69303]
[1717999804077,1.35846,3680.7,3679.8,3.69303]
[1717999804282,1.35846,3680.7,3679.8,4.062333]
[1717999804643,4.3934,3681.0,3679.8,4.062333]
[1717999804644,1.35855,3680.4,3679.8,0.369303]
[1717999804848,1.35855,3680.4,3679.4,3.74168]
[1717999808250,0.07557623,3680.3,3679.4,3.74168]
[1717999808987,1.35855,3680.4,3679.4,3.74168]
[1717999809279,3.77885,3680.4,3679.4,3.74168]
[1717999809687,3.77885,3680.4,3679.5,2.23651218]
[1717999811282,1.35865,3680.2,3679.5,2.23651218]
[1717999811585,1.35865,3680.2,3679.4,3.74168]
[1717999811787,0.07536251,3680.1,3679.4,3.74168]
[1717999812147,1.35865,3680.2,3679.4,3.74168]
[1717999814794,1.35851,3680.5,3679.4,3.74168]
[1717999815003,1.35851,3680.5,3679.5,0.374168]
[1717999818855,0.07538344,3680.4,3679.5,0.374168]
[1717999819987,1.35851,3680.5,3679.5,0.374168]
[1717999820893,0.07534278,3680.4,3679.5,0.374168]
[1717999821071,0.07534278,3680.4,3679.5,1.172168]
[1717999821265,0.07534278,3680.4,3679.6,0.4913848]
[1717999823199,0.07534278,3680.4,3679.7,2.2629]
[1717999830607,0.07534278,3680.4,3679.7,0.798]
[1717999830767,0.07534278,3680.4,3679.9,0.798]
[1717999831285,0.07534278,3680.4,3679.8,2.3764]
[1717999831472,0.07534278,3680.4,3679.9,0.45332]
[1717999831672,0.10359522,3680.4,3679.9,0.45332]
[1717999832112,1.35851,3680.5,3679.9,0.45332]
[1717999836130,0.798,3680.8,3679.9,0.45332]
[1717999836290,0.10370695,3680.4,3679.9,1.25132]
[1717999836494,0.798,3680.8,3680.0,0.498652]
[1717999836825,0.10368041,3680.3,3680.0,0.498652]
[1717999837111,1.35839,3680.9,3680.0,0.498652]
[1717999837318,0.10365387,3680.2,3680.0,0.498652]
[1717999837617,0.798,3680.8,3680.0,0.498652]
[1717999837818,0.798,3680.8,3679.9,0.798]
[1717999837977,0.10379673,3680.7,3679.9,0.798]
[1717999838577,0.10379673,3680.7,3679.8,2.3764]
[1717999838775,0.10379673,3680.7,3680.5,3.2969]
[1717999839004,1.35825,3681.2,3680.5,3.2969]
[1717999839215,0.10048275,3680.6,3680.5,3.2969]
[1717999839434,1.35825,3681.2,3680.5,3.62659]
[1717999839592,0.09703564,3680.6,3680.5,3.2969]
[1717999839795,1.35825,3681.2,3680.5,3.2969]
[1717999840124,0.09716829,3681.1,3680.5,3.2969]
[1717999841003,0.09716829,3681.1,3680.5,2.4989]
[1717999842899,1.35825,3681.2,3680.5,2.4989]
[1717999843100,0.09735915,3681.0,3680.5,2.4989]
[1717999843309,1.35825,3681.2,3680.5,2.4989]
[1717999843844,0.09738228,3681.1,3680.5,2.4989]
[1717999844138,2.15625,3681.2,3680.5,2.4989]
[1717999844602,0.09739205,3681.1,3680.5,2.4989]
[1717999844933,2.15625,3681.2,3680.5,2.4989]
[1717999845442,0.09737252,3681.1,3680.5,2.4989]
[1717999845938,2.15625,3681.2,3680.5,2.4989]
[1717999846297,0.09738228,3681.1,3680.5,2.4989]
[1717999846702,1.35833,3681.0,3680.5,2.4989]
[1717999846905,1.45568576,3681.0,3680.5,2.4989]
[1717999850144,2.25368576,3681.0,3680.2,2.47]
[1717999850928,0.798,3680.8,3680.2,2.47]
[1717999851132,0.09727351,3680.9,3680.2,2.932662]
[1717999851320,0.09722045,3680.7,3680.2,3.730662]
[1717999851521,2.15633,3681.0,3680.2,3.730662]
[1717999851720,0.09716675,3680.6,3680.2,3.730662]
[1717999851950,2.15633,3681.0,3680.3,0.5089282]
[1717999852120,2.15633,3681.0,3680.2,3.268]
[1717999852315,0.09724635,3680.9,3680.2,3.268]